bitfinex/quotes_ETHUSD_20240928
["timestamp","ask_amount","ask_price","bid_price","bid_amount"]
[1727552653453,7.45387,2683.2,2683.1,0.03836847]
[1727552653670,7.45387,2683.2,2682.7,0.7777]
[1727552653860,3.7269,2683.2,2683.1,0.03836847]
[1727552654060,3.7269,2683.2,2682.7,0.7777]
[1727552654567,3.7269,2683.2,2682.8,0.03836847]
[1727552654888,3.7269,2683.2,2682.7,0.7777]
[1727552655090,3.7269,2683.2,2682.9,0.03836847]
[1727552655285,3.7269,2683.2,2682.7,0.7777]
[1727552655475,3.7269,2683.2,2683.0,0.03836847]
[1727552655676,3.7269,2683.2,2682.7,0.7777]
[1727552655854,3.7269,2683.2,2683.1,0.03836847]
[1727552656049,3.7269,2683.2,2682.7,0.7777]
[1727552656557,3.7269,2683.2,2682.8,0.03836847]
[1727552656859,3.72719,2683.0,2682.7,0.7777]
[1727552657398,3.72719,2683.0,2682.8,0.03836847]
[1727552657572,3.72719,2683.0,2682.5,3.72776]
[1727552657573,3.72719,2683.0,2682.5,5.4067808]
[1727552657774,3.72719,2683.0,2682.6,0.03836847]
[1727552660292,3.72705,2683.1,2682.6,3.76606847]
[1727552660593,3.72705,2683.1,2682.6,4.6833694]
[1727552661903,8.28036,2683.2,2682.7,3.72758]
[1727552662305,8.28036,2683.2,2682.8,0.03846194]
[1727552662662,8.28036,2683.2,2682.7,3.72758]
[1727552662866,4.55336,2683.2,2682.9,0.03846194]
[1727552663204,4.55336,2683.2,2683.0,0.03846194]
[1727552663368,4.55336,2683.2,2682.6,7.45532]
[1727552663886,4.55336,2683.2,2682.7,0.03846194]
[1727552665086,4.55336,2683.2,2682.7,3.76603194]
[1727552670281,4.55336,2683.2,2682.7,4.74891993]
[1727552675000,4.55336,2683.2,2682.7,5.53081993]
[1727552675188,6.47218344,2683.4,2682.9,4.50908]
[1727552675393,5.68388344,2683.4,2682.9,4.50908]
[1727552675590,5.68388344,2683.4,2683.0,0.03727044]
[1727552675812,1.95717344,2683.4,2683.0,3.76457488]
[1727552676031,4.95717344,2683.4,2683.0,3.76457488]
[1727552678304,3.0,2683.4,2683.0,3.76457488]
[1727552678504,1.9579204,2683.4,2683.0,4.74770717]
[1727552679117,5.6844004,2683.5,2683.0,4.74762717]
[1727552679294,5.6844004,2683.5,2683.1,0.8294]
[1727552679494,3.72648,2683.5,2683.1,0.8294]
[1727552679789,3.72648,2683.5,2683.2,0.03741488]
[1727552680529,6.4725704,2683.6,2683.2,0.03741488]
[1727552682726,5.6842704,2683.6,2683.2,0.03741488]
[1727552683235,5.68504363,2683.6,2683.2,0.03741488]
[1727552690626,3.72635,2683.6,2683.2,0.03741488]
[1727552696436,7.45276,2683.6,2683.2,0.03741488]
[1727552697123,3.72635,2683.6,2683.2,0.03741488]
[1727552698030,7.45278,2683.6,2683.2,0.03741488]
[1727552698234,3.72635,2683.6,2683.2,0.03741488]
[1727552698458,7.45278,2683.6,2683.2,0.03741488]
[1727552699227,7.45276,2683.6,2683.2,0.03741488]
[1727552699427,3.72635,2683.6,2683.2,0.03741488]
[1727552700559,3.72655,2683.5,2683.2,0.03741488]
[1727552701626,3.72635,2683.6,2683.2,0.03741488]
[1727552703083,1.95700551,2683.7,2683.3,4.53238]
[1727552703280,1.95700551,2683.9,2683.4,3.72653]
[1727552703470,9.40878551,2684.0,2683.5,0.8057]
[1727552703779,3.72593,2683.9,2683.5,0.8057]
[1727552703959,5.68288551,2684.0,2683.5,0.8057]
[1727552704151,5.68288551,2684.0,2683.6,0.03682013]
[1727552704553,7.45176,2684.0,2683.6,0.03682013]
[1727552704757,9.40876551,2684.0,2683.6,0.03682013]
[1727552705088,5.68288551,2684.0,2683.6,0.03682013]
[1727552705460,3.72588,2684.0,2683.6,0.03682013]
[1727552705645,5.68288551,2684.0,2683.6,0.03682013]
[1727552705975,3.72588,2684.0,2683.6,0.03682013]
[1727552706143,5.68288551,2684.0,2683.6,0.03682013]
[1727552706483,3.72592,2683.9,2683.6,0.03682013]
[1727552707042,3.72592,2683.9,2683.5,0.8057]
[1727552707481,3.72592,2683.9,2683.6,0.03682013]
[1727552707642,3.72614,2683.8,2683.6,0.03682013]
[1727552707843,4.55734,2683.8,2683.6,0.03682013]
[1727552708044,4.55734,2683.8,2683.7,0.0364209]
[1727552708575,3.7262,2683.7,2683.3,0.8057]
[1727552708966,3.7262,2683.7,2683.4,0.0364209]
[1727552709346,3.7262,2683.7,2683.3,0.8057]
[1727552709756,3.7262,2683.7,2683.4,0.0364209]
[1727552710166,3.7262,2683.7,2683.3,0.8057]
[1727552710380,3.7262,2683.7,2683.3,4.53245]
[1727552710887,3.7262,2683.7,2683.4,0.0364209]
[1727552711072,0.8312,2683.8,2683.4,0.0364209]
[1727552711455,0.8312,2683.8,2683.3,4.53245]
[1727552711653,4.55727,2683.8,2683.4,0.0364209]
[1727552714196,4.55727,2683.8,2683.5,0.0364209]
[1727552714494,4.55727,2683.8,2683.3,8.25904]
[1727552715191,4.55727,2683.8,2683.4,0.0364209]
[1727552715889,3.7262,2683.7,2683.4,0.0364209]
[1727552716293,4.55728,2683.8,2683.4,0.0364209]
[1727552716658,5.5812112,2683.8,2683.4,0.0364209]
[1727552717280,5.5812612,2683.8,2683.4,0.0364209]
[1727552720203,1.8551312,2683.8,2683.4,0.0364209]
[1727552720367,0.8312,2683.8,2683.4,3.7630109]
[1727552725507,2.78830116,2683.8,2683.4,3.7630109]
[1727552725799,2.78891735,2683.8,2683.4,3.7630109]
[1727552727171,0.8312,2683.8,2683.4,3.7630109]
[1727552728103,2.78891735,2683.8,2683.4,3.7630109]
[1727552729506,0.8312,2683.8,2683.4,3.7630109]
[1727552729674,2.78891735,2683.8,2683.4,3.7630109]
[1727552730007,2.78891735,2683.8,2683.4,3.7629609]
[1727552730583,2.78907758,2683.8,2683.4,3.7629609]
[1727552731370,0.8312,2683.8,2683.4,3.7629609]
[1727552733910,2.78907758,2683.8,2683.4,3.7629609]
[1727552735408,2.78925964,2683.8,2683.4,3.7629609]
[1727552736580,1.95805964,2683.8,2683.4,3.7629609]
[1727552737316,5.68412964,2683.8,2683.4,3.7630209]
[1727552737517,1.95805964,2683.8,2683.4,3.7630209]
[1727552740404,5.68411964,2683.8,2683.4,0.0364209]
[1727552740995,5.68411964,2683.8,2683.4,3.7630309]
[1727552741332,1.95805964,2683.8,2683.4,3.7630309]
[1727552745195,1.95890022,2683.7,2683.4,3.7630309]
[1727552745730,1.95890022,2683.8,2683.4,3.7630309]
[1727552746094,1.95890022,2683.7,2683.4,0.0364209]
[1727552747191,1.95890022,2683.7,2683.4,3.7630009]
[1727552747435,1.95890022,2683.7,2683.4,0.0364209]
[1727552749118,1.95890022,2683.7,2683.4,3.7629909]
[1727552749376,1.95890022,2683.7,2683.4,0.0364209]
[1727552750233,1.95958851,2683.7,2683.4,0.0364209]
[1727552750537,1.95958851,2683.7,2683.4,3.7630109]
[1727552752721,1.95958851,2683.7,2683.4,0.0364209]
[1727552753143,5.68594851,2683.6,2683.4,0.0364209]
[1727552754451,1.95958851,2683.6,2683.4,0.0364209]
[1727552754956,1.95985382,2683.6,2683.4,0.0364209]
[1727552759966,1.95969147,2683.6,2683.4,0.0364209]
[1727552761962,1.95964709,2683.6,2683.4,0.0364209]
[1727552762568,1.95964709,2683.7,2683.4,0.0364209]
[1727552762973,1.95964709,2683.6,2683.4,0.0364209]
[1727552763268,1.95964709,2683.6,2683.5,0.7865]
[1727552763484,1.95957744,2683.7,2683.5,4.51296]
[1727552763634,1.95957744,2683.7,2683.5,4.54966971]
[1727552764332,1.95957744,2683.7,2683.5,0.82320971]
[1727552768451,1.9595627,2683.7,2683.5,0.82320971]
[1727552770678,1.9595627,2683.7,2683.5,4.54965971]
[1727552771370,1.9595627,2683.7,2683.5,0.82320971]
[1727552773287,1.95956285,2683.7,2683.5,4.54965971]
[1727552773751,1.95956285,2683.7,2683.5,0.82320971]
[1727552778151,1.95956023,2683.7,2683.5,0.82320971]
[1727552778851,1.95956023,2683.8,2683.6,5.28385797]
[1727552779096,1.95956023,2684.1,2683.9,4.51241]
[1727552779354,14.10469228,2684.4,2684.0,4.21358631]
[1727552779355,1.95956023,2684.3,2684.0,4.21358631]
[1727552779576,1.95956023,2684.3,2684.0,3.76234531]
[1727552780152,1.95956023,2684.3,2684.0,0.03656531]
[1727552780381,5.68488023,2684.4,2684.0,0.03656531]
[1727552782302,1.95956023,2684.3,2684.0,0.03656531]
[1727552782627,5.68488023,2684.4,2684.0,0.03656531]
[1727552783017,5.68190866,2684.4,2684.0,0.03656531]
[1727552786901,3.72532,2684.4,2684.0,0.03656531]
[1727552787101,5.68190866,2684.4,2684.0,0.03656531]
[1727552787401,3.72532,2684.4,2684.0,0.03656531]
[1727552798573,0.8299,2684.3,2684.0,0.03656531]
[1727552798878,3.72579,2684.0,2683.7,0.7645]
[1727552799242,3.72579,2684.0,2683.8,0.03455012]
[1727552799774,3.72579,2684.0,2683.9,0.03455012]
[1727552799957,3.72579,2684.0,2683.7,0.7645]
[1727552800278,3.72564,2684.1,2683.9,0.03455012]
[1727552800473,3.72564,2684.1,2683.7,0.7645]
[1727552800650,3.72564,2684.1,2684.0,0.03455012]
[1727552800857,3.72564,2684.1,2683.7,0.7645]
[1727552801054,3.72564,2684.1,2684.0,0.03455012]
[1727552801269,3.72564,2684.1,2683.7,0.7645]
[1727552801457,3.72564,2684.1,2684.0,0.03455012]
[1727552801671,3.72564,2684.1,2683.7,0.7645]
[1727552801847,3.72564,2684.1,2684.0,0.03455012]
[1727552802046,3.72564,2684.1,2683.7,0.7645]
[1727552802674,3.72564,2684.1,2683.8,0.03455012]
[1727552803069,3.72564,2684.1,2683.7,0.7645]
[1727552803270,3.72564,2684.1,2683.9,0.03455012]
[1727552803485,3.72564,2684.1,2683.7,0.7645]
[1727552804021,3.72564,2684.1,2683.8,0.03455012]
[1727552804306,3.72579,2684.0,2683.7,0.7645]
[1727552804471,3.72579,2684.0,2683.9,0.03455012]
[1727552804670,3.72579,2684.0,2683.7,0.7645]
[1727552804871,6.48700907,2684.2,2683.7,0.7645]
[1727552805123,10.21262907,2684.2,2683.8,0.03455012]
[1727552805410,10.21262907,2684.2,2683.7,0.7645]
[1727552805712,8.257887,2684.2,2683.9,0.03455012]
[1727552805909,4.82990291,2684.1,2683.7,0.7645]
[1727552806111,3.72565,2684.1,2683.7,0.7645]
[1727552806414,3.72565,2684.1,2683.8,0.03455012]
[1727552806613,3.72565,2684.1,2683.7,0.7645]
[1727552806816,3.72565,2684.1,2683.9,0.03455012]
[1727552806982,3.72565,2684.1,2683.7,0.7645]
[1727552807192,3.72565,2684.1,2684.0,0.03455012]
[1727552807507,3.72565,2684.1,2683.7,0.7645]
[1727552807875,3.72565,2684.1,2683.8,0.03455012]
[1727552808171,4.532267,2684.2,2683.7,0.7645]
[1727552808419,5.68078893,2684.2,2683.9,0.03455012]
[1727552808713,0.65106889,2684.1,2683.7,0.7645]
[1727552808876,5.68078893,2684.2,2684.0,0.03455012]
[1727552809077,5.68078893,2684.2,2683.7,0.7645]
[1727552809311,5.68078893,2684.2,2684.1,0.03455012]
[1727552809510,3.7255,2684.2,2683.7,0.7645]
[1727552809709,9.40639893,2684.2,2684.1,0.03469449]
[1727552810005,8.25791169,2684.2,2683.7,0.7645]
[1727552810238,10.21320062,2684.2,2684.1,0.03469449]
[1727552810386,6.48761062,2684.2,2683.7,0.7645]
[1727552810586,6.48761062,2684.2,2684.1,0.03469449]
[1727552810776,6.48761062,2684.2,2683.7,0.7645]
[1727552810976,6.48761062,2684.2,2684.1,0.03469449]
[1727552811177,6.48761062,2684.2,2683.7,0.7645]
[1727552811405,6.48761062,2684.2,2684.1,0.03469449]
[1727552811643,6.48761062,2684.2,2683.7,0.7645]
[1727552811808,6.48761062,2684.2,2684.1,0.03469449]
[1727552812151,6.48811606,2684.2,2683.7,0.7645]
[1727552812618,6.48811606,2684.2,2683.8,0.03469449]
[1727552812823,6.48811606,2684.2,2683.7,0.7645]
[1727552813017,6.48811606,2684.2,2683.9,0.03469449]
[1727552813250,6.48811606,2684.2,2683.7,0.7645]
[1727552813542,6.48811606,2684.2,2684.0,0.03480488]
[1727552813754,0.73180161,2684.1,2683.7,4.49069]
[1727552813922,5.68129437,2684.2,2683.7,4.49069]
[1727552814306,5.68129437,2684.2,2683.8,0.03480488]
[1727552814734,5.68129437,2684.2,2683.7,4.49069]
[1727552814915,5.68129437,2684.2,2683.9,0.03480488]
[1727552815107,6.8606986,2684.2,2683.7,4.49069]
[1727552815339,6.8606986,2684.2,2684.0,0.03480488]
[1727552815539,10.5862886,2684.2,2683.7,4.49069]
[1727552815742,5.68129437,2684.2,2684.1,0.03480488]
[1727552815941,5.68129437,2684.2,2683.7,4.49069]
[1727552816116,5.68129437,2684.2,2684.1,0.03480488]
[1727552816317,5.68129437,2684.2,2683.7,4.49069]
[1727552816533,5.68129437,2684.2,2684.1,0.03480488]
[1727552816724,7.09603321,2684.2,2683.7,4.49069]
[1727552816926,5.68193365,2684.2,2684.1,0.03480488]
[1727552817413,5.68193365,2684.2,2683.7,4.49069]
[1727552818111,5.68193365,2684.2,2683.8,0.03480488]
[1727552818511,5.68193365,2684.2,2683.9,0.03480488]
[1727552818815,5.68193365,2684.2,2683.7,4.49069]
[1727552819029,5.68193365,2684.2,2684.0,0.03480488]
[1727552819233,5.68193365,2684.2,2683.7,4.49069]
[1727552820564,1.95643365,2684.1,2683.7,4.49069]
[1727552820755,3.7255,2684.2,2683.7,4.49069]
[1727552820958,1.9571116,2684.1,2683.7,4.49069]
[1727552822040,5.68278419,2684.2,2683.7,4.49069]
[1727552822469,1.95728419,2684.1,2683.7,4.49069]
[1727552823073,1.95728419,2684.1,2683.7,0.7645]
[1727552823245,3.72578,2684.0,2683.7,0.7645]
[1727552823856,1.95728419,2684.1,2683.7,0.7645]
[1727552824051,5.68295419,2684.1,2683.7,0.7645]
[1727552824374,7.09741651,2684.1,2683.7,0.7645]
[1727552825078,2.75363963,2684.0,2683.6,3.72623]
[1727552825777,0.7958,2684.0,2683.6,3.72623]
[1727552826825,2.75363963,2684.0,2683.6,3.72623]
[1727552827623,6.47941963,2684.0,2683.6,3.72623]
[1727552828215,2.75363963,2684.0,2683.6,3.72623]
[1727552829179,6.47941963,2684.0,2683.7,0.03487281]
[1727552829379,4.52158,2684.0,2683.7,0.03487281]
[1727552833282,6.4794906,2684.0,2683.7,0.03487281]
[1727552835629,2.7537106,2684.0,2683.7,0.03487281]
[1727552838088,1.9579106,2684.0,2683.7,0.03487281]
[1727552843652,1.9579106,2683.9,2683.7,0.03487281]
[1727552844247,2.15370166,2683.9,2683.5,4.55216]
[1727552844421,1.9579106,2683.9,2683.8,0.03490677]
[1727552844606,1.9579106,2683.9,2683.5,4.55216]
[1727552844811,1.9579106,2683.9,2683.8,0.03494074]
[1727552845046,2.76123893,2683.9,2683.5,4.55216]
[1727552845255,1.9579106,2683.9,2683.8,0.03494074]
[1727552845467,1.9579106,2683.9,2683.5,4.55216]
[1727552845763,1.9579106,2683.9,2683.8,0.03494074]
[1727552845960,1.95965717,2683.9,2683.5,4.55216]
[1727552846166,1.95965717,2683.9,2683.3,0.7978]
[1727552846167,3.7262,2683.7,2683.3,0.7978]
[1727552846336,3.72619,2683.7,2683.6,0.03494074]
[1727552846526,4.95076137,2683.7,2683.6,0.03494074]
[1727552846732,6.909865,2683.7,2683.3,0.7978]
[1727552847128,6.909865,2683.7,2683.4,0.03387796]
[1727552847570,6.909865,2683.7,2683.3,0.7978]
[1727552848060,5.68546363,2683.6,2683.4,0.03387796]
[1727552848263,7.20481993,2683.6,2683.4,0.03387796]
[1727552848470,5.2457163,2683.6,2683.4,0.03387796]
[1727552848639,3.72647,2683.5,2683.4,0.03387796]
[1727552848848,4.7680152,2683.5,2683.1,0.7978]
[1727552849030,3.72647,2683.5,2683.4,0.03387796]
[1727552849366,3.72647,2683.5,2683.1,0.7978]
[1727552849728,3.72647,2683.5,2683.2,0.03387796]
[1727552857036,3.72662,2683.4,2683.2,0.03387796]
[1727552857236,4.53562,2683.4,2683.2,0.03387796]
[1727552857437,4.53562,2683.4,2682.9,4.52503]
[1727552857635,4.53562,2683.4,2683.3,0.03387796]
[1727552857942,4.53562,2683.4,2682.9,0.7978]
[1727552858143,4.180332,2683.3,2682.9,0.7978]
[1727552858357,0.453562,2683.3,2682.9,0.7978]
[1727552858674,5.28443797,2683.2,2682.7,4.52529]
[1727552859072,5.28443797,2683.2,2682.8,0.03311396]
[1727552859280,5.28443797,2683.2,2682.7,4.52529]
[1727552859438,3.72691,2683.2,2682.9,0.03311396]
[1727552859635,4.754272,2683.2,2682.7,4.52529]
[1727552859948,4.754272,2683.2,2683.0,0.03360667]
[1727552860162,4.754272,2683.2,2682.7,8.25276]
[1727552860409,4.754272,2683.2,2683.1,0.03360667]
[1727552860856,4.754272,2683.2,2682.7,8.25276]
[1727552861057,4.180312,2683.3,2683.1,0.03360667]
[1727552861259,3.72675,2683.3,2682.8,3.72743]
[1727552861471,6.72675,2683.3,2683.2,0.03362366]
[1727552861668,8.50430248,2683.3,2682.8,3.72743]
[1727552861896,8.50430248,2683.3,2683.2,0.03362366]
[1727552862058,8.50430248,2683.3,2682.8,3.72743]
[1727552862258,8.50430248,2683.3,2683.2,0.03362366]
[1727552862458,8.50430248,2683.3,2682.8,3.72743]
[1727552862710,8.50430248,2683.3,2683.2,0.03362366]
[1727552862870,8.50430248,2683.3,2682.8,3.72743]
[1727552863206,8.50430248,2683.3,2683.2,0.03362366]
[1727552863407,8.50430248,2683.3,2682.8,3.72743]
[1727552863564,8.50430248,2683.3,2683.2,0.03362366]
[1727552863764,8.50430248,2683.3,2682.8,3.72743]
[1727552864709,8.50430248,2683.3,2682.9,0.03362366]
[1727552864862,1.45974505,2683.2,2682.9,0.03362366]
[1727552867578,5.18663505,2683.2,2682.9,0.03362366]
[1727552873333,5.18663505,2683.2,2682.7,0.7978]
[1727552873628,3.72689,2683.2,2682.8,0.0338106]
[1727552874034,3.72689,2683.2,2682.7,4.52538]
[1727552874393,3.72689,2683.2,2682.8,0.0338106]
[1727552874829,3.72689,2683.2,2682.7,4.52538]
[1727552875339,3.72689,2683.2,2682.8,0.0338106]
[1727552875934,7.45386,2683.2,2682.9,0.03385308]
[1727552876107,3.72689,2683.2,2682.7,4.52538]
[1727552876299,3.72689,2683.2,2682.8,0.03385308]
[1727552876633,3.72689,2683.2,2682.7,4.52538]
[1727552876838,3.72689,2683.2,2682.9,0.03385308]
[1727552877137,8.7358718,2683.2,2682.7,4.52538]
[1727552877338,8.7358718,2683.2,2682.8,0.03385308]
[1727552877534,5.0089018,2683.2,2682.7,4.52538]
[1727552877749,7.45386,2683.2,2682.8,0.03385308]
[1727552878145,3.72689,2683.2,2682.7,4.52538]
[1727552878438,7.45389,2683.2,2682.7,4.52538]
[1727552878737,7.45389,2683.2,2682.8,0.03385308]
[1727552878902,7.45389,2683.2,2682.7,4.52538]
[1727552879099,7.45445,2683.0,2682.8,0.03385308]
[1727552879304,3.72731,2682.9,2682.4,4.48879]
[1727552879533,3.72717,2683.0,2682.5,0.03388707]
[1727552879534,3.72745,2682.8,2682.5,0.03388707]
[1727552879837,4.49835,2682.8,2682.5,0.03388707]
[1727552880726,0.7709,2682.8,2682.5,0.03388707]
[1727552881411,0.7709,2682.8,2682.5,3.76172707]
[1727552881615,3.72714,2683.1,2682.6,3.72764]
[1727552881825,3.72714,2683.1,2682.7,0.7876]
[1727552882142,3.72714,2683.1,2682.7,0.8217335]
[1727552889246,3.72717,2683.0,2682.7,0.8217335]
[1727552891561,3.72703,2683.1,2682.7,5.00424085]
[1727552891855,3.7269,2683.2,2682.8,0.7876]
[1727552892231,3.7269,2683.2,2682.9,0.03434596]
[1727552892753,3.0,2683.3,2682.9,0.03434596]
[1727552892953,3.7267,2683.4,2683.0,0.7876]
[1727552893254,7.45339,2683.4,2683.1,0.03426946]
[1727552893451,3.72684,2683.3,2683.1,0.03426946]
[1727552895257,5.68403445,2683.3,2683.1,0.03426946]
[1727552895615,5.68403445,2683.3,2683.0,0.7876]
[1727552900360,5.68403445,2683.3,2683.1,0.03312715]
[1727552901180,5.68520177,2683.3,2683.1,0.03312715]
[1727552901572,1.95836177,2683.2,2683.1,0.03312715]
[1727552902466,5.68520177,2683.3,2683.1,0.03312715]
[1727552902665,1.95836177,2683.2,2683.1,0.03312715]
[1727552902881,5.68520177,2683.3,2683.1,0.03312715]
[1727552903289,1.95836177,2683.2,2683.1,0.03312715]
[1727552904793,5.68525177,2683.2,2683.1,0.03312715]
[1727552907256,6.51825177,2683.2,2683.1,0.03312715]
[1727552907452,5.97514839,2683.2,2683.1,0.03312715]
[1727552907794,7.53267636,2683.2,2683.1,0.03288071]
[1727552908295,3.72756,2682.8,2682.4,0.8063]
[1727552910152,3.72756,2682.8,2682.4,4.53429]
[1727552910558,4.56031,2682.9,2682.4,4.53429]
[1727552911396,5.28497797,2682.8,2682.1,0.78304351]
[1727552911601,3.72779,2682.6,2682.2,0.7778]
[1727552926109,4.49239,2682.6,2682.2,0.7778]
[1727552937943,8.22023,2682.6,2682.2,0.7778]
[1727552938239,5.314413,2682.6,2681.9,8.26576]
[1727552938542,3.72823,2682.3,2681.8,3.72883]
[1727552938838,0.7646,2682.1,2681.8,3.72883]
[1727552939136,0.7646,2682.1,2681.7,4.53738]
[1727552939814,0.7646,2682.1,2681.7,8.26629]
[1727552940225,4.49314,2682.1,2681.6,3.7479659]
[1727552940537,0.7646,2682.1,2681.8,3.72873]
[1727552940704,4.52162,2682.4,2681.9,0.756]
[1727552941328,4.52162,2682.4,2681.9,4.48467]
[1727552942153,4.52162,2682.4,2681.9,4.48461]
[1727552942321,4.52162,2682.4,2682.0,3.72855]
[1727552942509,0.7935,2682.4,2682.0,3.72855]
[1727552943225,0.7935,2682.4,2682.0,3.72845]
[1727552945327,4.52152,2682.4,2682.0,3.72845]
[1727552947138,3.72786,2682.5,2682.0,3.72845]
[1727552947756,7.52132,2682.6,2682.1,3.7284]
[1727552948048,4.52132,2682.6,2682.1,3.7284]
[1727552950257,8.24914,2682.6,2682.0,9.01445797]
[1727552950565,8.24914,2682.6,2682.0,9.99150377]
[1727552952750,8.24914,2682.6,2682.0,6.26302377]
[1727552953280,4.52132,2682.6,2682.0,9.99150377]
[1727552953436,8.24914,2682.6,2682.0,9.99150377]
[1727552953837,10.20676704,2682.6,2682.0,9.99150377]
[1727552955351,10.20676704,2682.6,2682.0,6.26302377]
[1727552955557,10.20676704,2682.6,2682.0,9.99150377]
[1727552956900,10.20676704,2682.6,2682.0,6.26302377]
[1727552958278,10.20761761,2682.6,2682.0,6.26302377]
[1727552958945,10.20761761,2682.6,2682.0,6.26155716]
[1727552961086,6.47979761,2682.6,2682.0,6.26155716]
[1727552961394,3.72787,2682.5,2682.0,6.26155716]
[1727552962392,6.47969761,2682.6,2682.0,6.26155716]
[1727552962573,3.72788,2682.5,2682.1,3.7284]
[1727552963392,0.7935,2682.6,2682.2,2.38742797]
[1727552964401,0.7935,2682.6,2682.2,6.11561797]
[1727552975508,0.7935,2682.6,2682.2,2.38742797]
[1727552975741,4.52125,2682.6,2682.2,2.38742797]
[1727552977772,4.52125,2682.6,2682.2,0.8299]
[1727552978765,0.7935,2682.6,2682.2,4.55815]
[1727552981374,3.72761,2682.7,2682.2,4.55815]
[1727552981578,3.72761,2682.7,2682.2,8.28629]
[1727552981784,3.72761,2682.7,2682.2,4.55809]
[1727552982359,4.52855,2682.8,2682.3,3.7281]
[1727552982552,0.801,2682.8,2682.4,3.728]
[1727552982746,4.52846,2682.8,2682.4,4.5548]
[1727552995875,0.801,2682.8,2682.4,4.5548]
[1727552997526,1.82242447,2682.8,2682.4,4.5548]
[1727552998022,3.72785,2682.6,2682.1,3.72838]
[1727553000486,2.75960473,2682.7,2682.1,3.72838]
[1727553000487,1.95860473,2682.7,2682.4,3.728]
[1727553000659,1.95860473,2682.7,2682.3,0.7881]
[1727553000852,5.68612473,2682.8,2682.3,4.51622]
[1727553001064,3.72765,2682.7,2682.2,3.72814]
[1727553001265,0.7606,2682.6,2682.2,3.72814]
[1727553004076,0.7606,2682.6,2682.3,3.72811]
[1727553004459,0.7606,2682.6,2682.2,3.72814]
[1727553005183,0.7606,2682.6,2682.2,7.45634]
[1727553005561,0.7606,2682.6,2682.3,3.72814]
[1727553006386,0.7606,2682.6,2682.2,7.45635]
[1727553007323,0.7606,2682.6,2682.3,3.7281]
[1727553011825,2.72085971,2682.6,2682.3,3.7281]
[1727553012180,0.7606,2682.6,2682.3,3.7281]
[1727553018829,1.96024029,2682.7,2682.2,3.72814]
[1727553019125,1.96024029,2682.7,2682.4,3.7279]
[1727553019297,1.96024029,2682.7,2682.5,3.72778]
[1727553020228,1.96019797,2682.7,2682.5,3.72778]
[1727553021301,1.96019797,2682.7,2682.4,7.45582]
[1727553022034,1.96019797,2682.7,2682.4,3.7279]
[1727553024605,2.72079797,2682.8,2682.4,3.7279]
[1727553024911,2.72066507,2682.8,2682.4,3.7279]
[1727553025510,1.96006507,2682.7,2682.4,3.7279]
[1727553030074,1.96012747,2682.7,2682.4,3.7279]
[1727553031852,1.96012747,2682.7,2682.5,0.07037529]
[1727553032875,2.72072747,2682.8,2682.5,0.07037529]
[1727553033240,1.96012747,2682.8,2682.5,0.8169]
[1727553033441,1.96012747,2683.0,2682.7,4.54448]
[1727553033681,1.96012747,2683.1,2682.7,4.54448]
[1727553033977,6.86279297,2683.3,2682.7,4.54448]
[1727553033978,1.96012747,2683.2,2682.8,3.79829127]
[1727553034278,1.96012747,2683.2,2682.9,5.28471797]
[1727553034476,1.96012747,2683.3,2683.0,5.07953692]
[1727553034665,4.51031,2683.5,2683.0,5.07953692]
[1727553034666,1.96012747,2683.4,2683.0,4.61475476]
[1727553035551,10.19701747,2683.5,2683.0,4.61475476]
[1727553035751,1.96012747,2683.4,2683.0,4.61475476]
[1727553036457,1.96012747,2683.4,2683.0,5.60472303]
[1727553037077,10.19698747,2683.5,2683.0,5.60472303]
[1727553037487,3.72661,2683.4,2683.0,1.87764303]
[1727553037791,3.72661,2683.4,2683.0,0.88767476]
[1727553041156,4.51029,2683.5,2683.0,4.61483476]
[1727553041393,3.72649,2683.5,2683.0,4.61477476]
[1727553042902,3.72649,2683.5,2683.1,0.61723027]
[1727553043057,3.72649,2683.5,2683.1,0.68738453]
[1727553043762,3.72662,2683.4,2683.1,0.68738453]
[1727553043962,3.72662,2683.4,2683.1,0.07015426]
[1727553054135,0.7915,2683.3,2683.1,0.07015426]
[1727553054333,3.72689,2683.2,2682.7,4.54021]
[1727553054542,3.72689,2683.2,2682.7,0.8127]
[1727553054715,3.72704,2683.1,2682.7,0.8127]
[1727553057611,3.72704,2683.1,2682.7,4.54026]
[1727553058801,8.24515,2683.3,2682.7,4.54026]
[1727553069346,8.24515,2683.3,2682.8,0.06988231]
[1727553069549,8.24515,2683.3,2682.7,4.54026]
[1727553069709,9.4209609,2683.3,2682.9,0.06988231]
[1727553069909,9.4209609,2683.3,2682.7,4.54026]
[1727553070145,9.4209609,2683.3,2683.0,0.06988231]
[1727553070444,9.4209609,2683.3,2682.7,4.54026]
[1727553070845,5.6940709,2683.3,2682.8,0.06988231]
[1727553071076,1.13770494,2683.2,2682.8,0.06988231]
[1727553071217,1.13770494,2683.2,2682.7,4.54026]
[1727553071418,4.51826,2683.3,2682.9,0.06988231]
[1727553071732,8.24509,2683.3,2682.7,4.54026]
[1727553072135,8.24509,2683.3,2682.8,0.06988231]
[1727553072319,8.24509,2683.3,2682.7,4.54026]
[1727553072648,1.02011785,2683.2,2682.9,0.06988231]
[1727553072867,1.02011785,2683.2,2682.7,4.54026]
[1727553073019,4.51826,2683.3,2683.0,0.06988231]
[1727553073220,4.51826,2683.3,2682.7,4.54026]
[1727553073530,6.47455565,2683.3,2682.8,0.06988231]
[1727553073728,7.27776401,2683.3,2682.7,0.8127]
[1727553073931,7.27776401,2683.3,2682.9,0.06988231]
[1727553074132,7.27776401,2683.3,2682.8,3.72744]
[1727553074355,7.27776401,2683.3,2683.0,0.06988231]
[1727553074560,0.7277764,2683.2,2682.8,3.72744]
[1727553074733,7.27776401,2683.3,2683.1,0.06988231]
[1727553074935,7.27776401,2683.3,2682.8,3.72744]
[1727553075148,7.27776401,2683.3,2683.2,0.06988231]
[1727553075323,6.47455565,2683.3,2682.8,3.72744]
[1727553075526,1.95629565,2683.4,2683.2,0.06988231]
[1727553075720,1.95629565,2683.4,2683.0,4.48626]
[1727553076055,1.95629565,2683.4,2683.3,0.06995032]
[1727553076559,1.95629565,2683.4,2683.0,4.48626]
[1727553076760,1.95629565,2683.3,2683.0,4.48626]
[1727553076957,1.95629565,2683.4,2683.0,3.72709]
[1727553077269,3.72655,2683.5,2683.2,4.48598]
[1727553077270,1.95765714,2683.5,2683.2,4.48598]